fUSD/lending_fUSD_20240205
["ID","MTS","AMOUNT","RATE_DAILY","PERIOD"]
[313303220,1707127848185,-217.1586921,0.00041898,7]
[313303221,1707127848194,-500.0,0.00041898,7]
[313303222,1707127848203,-524.26368432,0.00041898,7]
[313303223,1707127848212,-500.0,0.00041898,7]
[313303224,1707127848222,-500.0,0.00041898,7]
[313303225,1707127848231,-505.26859983,0.00041898,7]
[313303226,1707127848240,-286.98137862,0.00041898,7]
[313303227,1707127848250,-533.61593114,0.00041898,7]
[313303228,1707127848260,-534.25626049,0.00041898,7]
[313303229,1707127848269,-541.42094164,0.00041898,7]
[313303230,1707127848278,-500.0,0.00041898,7]
[313303231,1707127848288,-521.85891287,0.00041898,7]
[313303232,1707127848298,-525.35369959,0.00041898,7]
[313303233,1707127848307,-577.38135072,0.00041898,7]
[313303234,1707127848316,-500.0,0.00041898,7]
[313303235,1707127848325,-516.24631089,0.00041898,7]
[313303236,1707127848334,-193.05799847,0.00041898,7]
[313303237,1707127848343,-539.68380596,0.00041898,7]
[313303238,1707127848353,-534.20158857,0.00041898,7]
[313303239,1707127848362,-500.0,0.00041898,7]
[313303240,1707127848371,-500.0,0.00041898,7]
[313303241,1707127848380,-529.7067348,0.00041898,7]
[313303242,1707127848389,-500.0,0.00041898,7]
[313303243,1707127848398,-513.12044176,0.00041898,7]
[313303244,1707127848407,-500.0,0.00041898,7]
[313303245,1707127848416,-1000.0,0.00041898,7]
[313303246,1707127848425,-500.0,0.00041898,7]
[313303247,1707127848435,-500.01905915,0.00041898,7]
[313303248,1707127848444,-534.814047,0.00041898,7]
[313303249,1707127848453,-622.83805664,0.00041898,7]
[313303250,1707127848462,-530.03824509,0.00041898,7]
[313303251,1707127848471,-611.76548183,0.00041898,7]
[313303252,1707127848480,-500.0,0.00041898,7]
[313303253,1707127848489,-500.0,0.00041898,7]
[313303254,1707127848499,-506.65874924,0.00041898,7]
[313303255,1707127848508,-619.16715612,0.00041898,7]
[313303256,1707127848518,-551.77714171,0.00041898,7]
[313303257,1707127848526,-500.0,0.00041898,7]
[313303258,1707127848535,-206.9377168,0.00041898,7]
[313303259,1707127848544,-500.0,0.00041898,7]
[313303260,1707127848553,-500.0,0.00041898,7]
[313303261,1707127848562,-500.0,0.00041898,7]
[313303262,1707127848571,-500.0,0.00041898,7]
[313303263,1707127848580,-298.31731291,0.00041898,7]
[313303264,1707127848589,-585.67823234,0.00041898,7]
[313303265,1707127848599,-591.23986353,0.00041898,7]
[313303266,1707127848608,-500.0,0.00041898,7]
[313303267,1707127848617,-306.16141071,0.00041898,7]
[313303268,1707127848625,-542.30074146,0.00041898,7]
[313303269,1707127848634,-630.11706352,0.00041898,7]
[313303270,1707127848643,-403.39985282,0.00041898,7]
[313303271,1707127848652,-500.0,0.00041898,7]
[313303272,1707127848661,-190.4221219,0.00041898,7]
[313303273,1707127848670,-500.0,0.00041898,7]
[313303274,1707127848679,-607.54574641,0.00041898,7]
[313303275,1707127848688,-638.29531886,0.00041898,7]
[313303276,1707127848697,-500.0,0.00041898,7]
[313303277,1707127848706,-500.0,0.00041898,7]
[313303278,1707127848715,-500.0,0.00041898,7]
[313303279,1707127848725,-500.0,0.00041898,7]
[313303280,1707127848736,-608.63501087,0.00041898,7]
[313303281,1707127848746,-500.0,0.00041898,7]
[313303282,1707127848756,-500.0,0.00041898,7]
[313303283,1707127848766,-500.0,0.00041898,7]
[313303284,1707127848777,-500.0,0.00041898,7]
[313303285,1707127848787,-500.0,0.00041898,7]
[313303286,1707127848797,-530.44393127,0.00041898,7]
[313303287,1707127848807,-500.0,0.00041898,7]
[313303288,1707127848817,-570.31814776,0.00041898,7]
[313303289,1707127848827,-640.63986222,0.00041898,7]
[313303290,1707127848836,-500.0,0.00041898,7]
[313303291,1707127848845,-500.0,0.00041898,7]
[313303292,1707127848854,-564.84540195,0.00041898,7]
[313303293,1707127848864,-500.0,0.00041898,7]
[313303294,1707127848873,-500.0,0.00041898,7]
[313303295,1707127848882,-500.0,0.00041898,7]
[313303296,1707127848892,-574.16498184,0.00041898,7]
[313303297,1707127848902,-319.43871117,0.00041898,7]
[313303298,1707127848912,-609.03238755,0.00041898,7]
[313303299,1707127848921,-500.0,0.00041898,7]
[313303300,1707127848931,-500.0,0.00041898,7]
[313303301,1707127848940,-500.0,0.00041898,7]
[313303302,1707127848950,-500.0,0.00041898,7]
[313303303,1707127848959,-500.0,0.00041898,7]
[313303304,1707127848968,-647.5426416,0.00041898,7]
[313303305,1707127848977,-584.86989603,0.00041898,7]
[313303306,1707127848988,-417.60742226,0.00041898,7]
[313303307,1707127848999,-500.0,0.00041898,7]
[313303308,1707127849009,-608.23296516,0.00041898,7]
[313303309,1707127849019,-500.0,0.00041898,7]
[313303310,1707127849029,-199.02195549,0.00041898,7]
[313303311,1707127849039,-500.0,0.00041898,7]
[313303312,1707127849048,-500.0,0.00041898,7]
[313303313,1707127849058,-501.93817618,0.00041898,7]
[313303314,1707127849067,-500.0,0.00041898,7]
[313303315,1707127849077,-550.13326444,0.00041898,7]
[313303316,1707127849087,-500.0,0.00041898,7]
[313303317,1707127849096,-524.27637057,0.00041898,7]
[313303318,1707127849106,-577.56651145,0.00041898,7]
[313303319,1707127849116,-500.0,0.00041898,7]
[313303320,1707127849126,-500.0,0.00041898,7]
[313303321,1707127849135,-595.26857741,0.00041898,7]
[313303322,1707127849145,-500.0,0.00041898,7]
[313303323,1707127849155,-409.87842611,0.00041898,7]
[313303324,1707127849164,-562.03320846,0.00041898,7]
[313303325,1707127849176,-500.0,0.00041898,2]
[313303326,1707127849187,-483.43509994,0.00041898,7]
[313303327,1707127849197,-500.0,0.00041898,7]
[313303328,1707127849208,-636.21305936,0.00041898,7]
[313303329,1707127849219,-571.81216033,0.00041898,7]
[313303330,1707127849230,-500.0,0.00041898,7]
[313303331,1707127849240,-500.0,0.00041898,7]
[313303332,1707127849251,-500.0,0.00041898,7]
[313303333,1707127849261,-500.0,0.00041898,7]
[313303334,1707127849271,-500.0,0.00041898,7]
[313303335,1707127849281,-611.35455974,0.00041898,7]
[313303336,1707127849292,-500.0,0.00041898,7]
[313303337,1707127849302,-500.0,0.00041898,7]
[313303338,1707127849312,-500.0,0.00041898,7]
[313303339,1707127849322,-531.79338639,0.00041898,7]
[313303340,1707127849333,-566.28761826,0.00041898,7]
[313303341,1707127849343,-500.0,0.00041898,7]
[313303342,1707127849353,-500.0,0.00041898,7]
[313303343,1707127849363,-500.0,0.00041898,7]
[313303344,1707127849374,-151.0,0.00041898,14]
[313303345,1707127849384,-151.0,0.00041898,14]
[313303346,1707127849395,-500.0,0.00041898,7]
[313303347,1707127849405,-500.0,0.00041898,7]
[313303348,1707127849414,-542.22462085,0.00041898,7]
[313303349,1707127849425,-500.0,0.00041898,7]
[313303350,1707127849436,-500.0,0.00041898,7]
[313303351,1707127849445,-608.613106,0.00041898,7]
[313303352,1707127849454,-500.0,0.00041898,7]
[313303353,1707127849465,-500.0,0.00041898,7]
[313303354,1707127849476,-590.93074948,0.00041898,7]
[313303355,1707127849486,-500.0,0.00041898,7]
[313303356,1707127849497,-500.0,0.00041898,7]
[313303357,1707127849507,-500.0,0.00041898,7]
[313303358,1707127849517,-500.0,0.00041898,7]
[313303359,1707127849528,-500.0,0.00041898,7]
[313303360,1707127849538,-583.72852499,0.00041898,7]
[313303361,1707127849548,-500.0,0.00041898,7]
[313303362,1707127849558,-446.00768279,0.00041898,7]
[313303363,1707127849568,-336.80728419,0.00041898,7]
[313303364,1707127849578,-358.99374192,0.00041898,7]
[313303365,1707127849588,-578.24072124,0.00041898,7]
[313303366,1707127849599,-500.0,0.00041898,7]
[313303367,1707127849609,-565.7050193,0.00041898,7]
[313303368,1707127849618,-500.0,0.00041898,7]
[313303369,1707127849628,-500.0,0.00041898,7]
[313303370,1707127849639,-500.0,0.00041898,7]
[313303371,1707127849648,-500.0,0.00041898,7]
[313303372,1707127849657,-598.48348836,0.00041898,7]
[313303373,1707127849667,-500.0,0.00041898,7]
[313303374,1707127849677,-569.30334934,0.00041898,7]
[313303375,1707127849688,-500.0,0.00041898,7]
[313303376,1707127849697,-500.0,0.00041898,7]
[313303377,1707127849707,-500.0,0.00041898,7]
[313303378,1707127849718,-500.0,0.00041898,7]
[313303379,1707127849728,-500.0,0.00041898,7]
[313303380,1707127849738,-500.0,0.00041898,7]
[313303381,1707127849748,-640.36935957,0.00041898,7]
[313303382,1707127849757,-500.0,0.00041898,7]
[313303383,1707127849767,-565.19016176,0.00041898,7]
[313303384,1707127849776,-581.43424987,0.00041898,7]
[313303385,1707127849785,-500.0,0.00041898,7]
[313303386,1707127849794,-583.62546141,0.00041898,7]
[313303387,1707127849804,-587.34758322,0.00041898,7]
[313303388,1707127849814,-500.0,0.00041898,7]
[313303389,1707127849824,-500.0,0.00041898,7]
[313303390,1707127849834,-500.0,0.00041898,7]
[313303391,1707127849843,-500.0,0.00041898,7]
[313303392,1707127849853,-582.0243445,0.00041898,7]
[313303393,1707127849862,-560.7171422,0.00041898,7]
[313303394,1707127849871,-500.0,0.00041898,7]
[313303395,1707127849881,-500.0,0.00041898,7]
[313303396,1707127849891,-366.27899755,0.00041898,7]
[313303397,1707127849900,-214.39159479,0.00041898,7]
[313303398,1707127849910,-500.0,0.00041898,7]
[313303399,1707127849919,-500.0,0.00041898,7]
[313303400,1707127849928,-500.0,0.00041898,7]
[313303401,1707127849937,-500.0,0.00041898,7]
[313303402,1707127849947,-500.0,0.00041898,7]
[313303403,1707127849956,-606.9647616,0.00041898,7]
[313303404,1707127849965,-500.0,0.00041898,7]
[313303405,1707127849974,-500.0,0.00041898,2]
[313303406,1707127849983,-500.0,0.00041898,7]
[313303407,1707127849994,-654.83,0.00041898,7]
[313303408,1707127850004,-500.0,0.00041898,2]
[313303409,1707127850015,-500.0,0.00041898,7]
[313303410,1707127850024,-554.16586497,0.00041898,7]
[313303411,1707127850034,-500.0,0.00041898,7]
[313303412,1707127850043,-500.0,0.00041898,7]
[313303413,1707127850054,-380.53798885,0.00041898,7]
[313303414,1707127850063,-500.0,0.00041898,7]
[313303415,1707127850073,-500.0,0.00041898,7]
[313303416,1707127850082,-500.0,0.00041898,7]
[313303417,1707127850093,-500.0,0.00041898,7]
[313303418,1707127850102,-500.0,0.00041898,7]
[313303419,1707127850112,-306.95422817,0.00041898,7]
[313303420,1707127850122,-500.0,0.00041898,7]
[313303421,1707127850132,-500.0,0.00041898,7]
[313303422,1707127850142,-500.0,0.00041898,7]
[313303423,1707127850152,-500.0,0.00041898,7]
[313303424,1707127850162,-500.0,0.00041898,7]
[313303425,1707127850172,-500.0,0.00041898,7]
[313303426,1707127850186,-564.00722072,0.00041898,7]
[313303427,1707127850195,-500.0,0.00041898,7]
[313303428,1707127850205,-500.0,0.00041898,7]
[313303429,1707127850216,-500.0,0.00041898,7]
[313303430,1707127850226,-500.0,0.00041898,7]
[313303431,1707127850235,-531.83463603,0.00041898,7]
[313303432,1707127850246,-575.43985981,0.00041898,7]
[313303433,1707127850255,-500.0,0.00041898,7]
[313303434,1707127850266,-166.87622317,0.00041898,7]
[313303435,1707127850276,-500.0,0.00041898,7]
[313303436,1707127850286,-500.0,0.00041898,7]
[313303437,1707127850297,-557.49371764,0.00041898,7]
[313303438,1707127850307,-556.97802644,0.00041898,7]
[313303439,1707127850316,-500.19,0.00041898,7]
[313303440,1707127850326,-500.0,0.00041898,7]
[313303441,1707127850335,-539.08527954,0.00041898,7]
[313303442,1707127850347,-500.0,0.00041898,7]
[313303443,1707127850356,-500.0,0.00041898,7]
[313303444,1707127850367,-500.0,0.00041898,7]
[313303445,1707127850377,-500.0,0.00041898,7]
[313303446,1707127850387,-625.12468522,0.00041898,7]
[313303447,1707127850397,-500.0,0.00041898,7]
[313303448,1707127850406,-598.40376996,0.00041898,7]
[313303449,1707127850415,-500.0,0.00041898,7]
[313303450,1707127850425,-647.37314883,0.00041898,7]
[313303451,1707127850435,-500.0,0.00041898,7]
[313303452,1707127850444,-500.0,0.00041898,7]
[313303453,1707127850454,-500.0,0.00041898,7]
[313303454,1707127850463,-534.17479636,0.00041898,7]
[313303455,1707127850473,-500.0,0.00041898,7]
[313303456,1707127850482,-576.93780198,0.00041898,7]
[313303457,1707127850491,-500.0,0.00041898,7]
[313303458,1707127850501,-642.09382308,0.00041898,7]
[313303459,1707127850613,-500.0,0.00041898,7]
[313303460,1707127850631,-514.14161565,0.00041898,7]
[313303461,1707127850640,-589.79741927,0.00041898,7]
[313303462,1707127850649,-455.55116422,0.00041898,7]
[313303463,1707127850658,-500.0,0.00041898,7]
[313303464,1707127850668,-500.0,0.00041898,7]
[313303465,1707127850677,-500.0,0.00041898,7]
[313303466,1707127850686,-500.0,0.00041898,7]
[313303467,1707127850696,-500.0,0.00041898,7]
[313303468,1707127850706,-500.0,0.00041898,7]
[313303469,1707127850715,-500.0,0.00041898,7]
[313303470,1707127850724,-500.0,0.00041898,2]
[313303471,1707127850733,-500.0,0.00041898,7]
[313303472,1707127850743,-500.0,0.00041898,7]
[313303473,1707127850753,-500.0,0.00041898,7]
[313303474,1707127850762,-500.0,0.00041898,7]
[313303475,1707127850771,-500.0,0.00041898,7]
[313303476,1707127850780,-500.0,0.00041898,7]
[313303477,1707127850789,-500.0,0.00041898,7]
[313303478,1707127850798,-637.99801598,0.00041898,7]
[313303479,1707127850808,-500.0,0.00041898,7]
[313303480,1707127850817,-500.0,0.00041898,7]
[313303481,1707127850827,-200.0,0.00041905,2]
[313303482,1707127850836,-171.38194321,0.00041916,3]
[313303483,1707127850845,-225.43379714,0.00041916,3]
[313303484,1707127850854,-518.31861613,0.00041917,7]
[313303485,1707127850863,-179.71575737,0.00041917,7]
[313303486,1707127850872,-572.52006762,0.00041917,7]
[313303487,1707127850882,-500.0,0.00041917,7]
[313303488,1707127850892,-153.69489303,0.00041917,7]
[313303489,1707127850901,-500.0,0.00041917,7]
[313303490,1707127850910,-500.0,0.00041917,7]
[313303491,1707127850920,-353.29610011,0.00041917,7]
[313303492,1707127850929,-500.0,0.00041917,7]
[313303493,1707127850938,-500.0,0.00041917,7]
[313303494,1707127850947,-506.5415052,0.00041917,7]
[313303495,1707127850956,-500.0,0.00041917,7]
[313303496,1707127850966,-500.0,0.00041917,7]
[313303497,1707127850974,-500.0,0.00041917,7]
[313303498,1707127850983,-513.87,0.00041917,7]
[313303499,1707127850993,-609.59568283,0.00041917,7]
[313303500,1707127851003,-500.0,0.00041917,7]
[313303501,1707127851012,-151.22093265,0.00041917,7]
[313303502,1707127851021,-500.0,0.00041917,7]
[313303503,1707127851030,-500.0,0.00041917,7]
[313303504,1707127851039,-500.0,0.00041917,7]
[313303505,1707127851048,-516.61456551,0.00041917,7]
[313303506,1707127851058,-500.0,0.00041917,7]
[313303507,1707127851068,-500.0,0.00041917,7]
[313303508,1707127851077,-500.0,0.00041917,7]
[313303509,1707127851087,-292.38313665,0.00041917,7]
[313303510,1707127851096,-500.0,0.00041917,7]
[313303511,1707127851105,-398.40873023,0.00041917,7]
[313303512,1707127851115,-616.39924428,0.00041917,7]
[313303513,1707127851124,-500.0,0.00041917,7]
[313303514,1707127851133,-500.0,0.00041917,7]
[313303515,1707127851143,-500.0,0.00041917,7]
[313303516,1707127851152,-223.8106824,0.00041917,7]
[313303517,1707127851161,-500.0,0.00041917,7]
[313303518,1707127851171,-500.0,0.00041917,7]
[313303519,1707127851185,-500.0,0.00041917,7]
[313303520,1707127851194,-500.0,0.00041917,7]
[313303521,1707127851203,-571.11489658,0.00041917,7]
[313303522,1707127851212,-500.0,0.00041917,30]
[313303523,1707127851222,-500.0,0.00041917,7]
[313303524,1707127851231,-531.38845883,0.00041917,7]
[313303525,1707127851240,-500.0,0.00041917,7]
[313303526,1707127851250,-500.0,0.00041917,7]
[313303527,1707127851261,-615.98632348,0.00041917,7]
[313303528,1707127851271,-500.0,0.00041917,7]
[313303529,1707127851280,-500.0,0.00041917,7]
[313303530,1707127851290,-641.5217335,0.00041917,7]
[313303531,1707127851299,-500.0,0.00041917,7]
[313303532,1707127851308,-500.0,0.00041917,2]
[313303533,1707127851321,-500.0,0.00041917,7]
[313303534,1707127851330,-500.0,0.00041917,7]
[313303535,1707127851339,-310.93928544,0.00041917,7]
[313303536,1707127851349,-527.14608829,0.00041917,7]
[313303537,1707127851358,-500.0,0.00041917,7]
[313303538,1707127851367,-522.8150076,0.00041917,7]
[313303539,1707127851376,-533.26149326,0.00041917,7]
[313303540,1707127851385,-500.0,0.00041917,7]
[313303541,1707127851394,-693.27,0.00041917,7]
[313303542,1707127851402,-500.0,0.00041917,7]
[313303543,1707127851412,-500.0,0.00041917,7]
[313303544,1707127851421,-500.0,0.00041917,7]
[313303545,1707127851430,-560.49471877,0.00041917,7]
[313303546,1707127851439,-500.0,0.00041917,7]
[313303547,1707127851448,-500.0,0.00041917,7]
[313303548,1707127851457,-535.74362496,0.00041917,7]
[313303549,1707127851466,-500.0,0.00041917,7]
[313303550,1707127851475,-500.0,0.00041917,7]
[313303551,1707127851485,-181.461313,0.00041917,7]
[313303552,1707127851494,-583.15203353,0.00041917,7]
[313303553,1707127851504,-500.0,0.00041917,7]
[313303554,1707127851514,-500.0,0.00041917,7]
[313303555,1707127851523,-500.0,0.00041917,7]
[313303556,1707127851533,-460.04890979,0.00041917,7]
[313303557,1707127851542,-500.0,0.00041917,7]
[313303558,1707127851552,-500.0,0.00041917,7]
[313303559,1707127851561,-500.0,0.00041917,7]
[313303560,1707127851570,-638.88900555,0.00041917,7]
[313303561,1707127851579,-500.0,0.00041917,7]
[313303562,1707127851589,-518.6848313,0.00041917,7]
[313303563,1707127851598,-500.0,0.00041917,7]
[313303564,1707127851607,-170.09636068,0.00041917,7]
[313303565,1707127851616,-539.50000017,0.00041917,7]
[313303566,1707127851625,-500.0,0.00041917,7]
[313303567,1707127851634,-485.36534074,0.00041917,7]
[313303568,1707127851643,-503.50644511,0.00041917,7]
[313303569,1707127851653,-500.0,0.00041917,7]
[313303570,1707127851662,-151.82014269,0.00041917,7]
[313303571,1707127851672,-536.70688528,0.00041917,7]
[313303572,1707127851682,-500.0,0.00041917,7]
[313303573,1707127851691,-500.0,0.00041917,7]
[313303574,1707127851700,-500.0,0.00041917,7]
[313303575,1707127851710,-156.12230947,0.00041917,7]
[313303576,1707127851719,-500.0,0.00041917,7]
[313303577,1707127851729,-500.0,0.00041917,7]
[313303578,1707127851738,-500.0,0.00041917,7]
[313303579,1707127851748,-500.0,0.00041917,7]
[313303580,1707127851758,-10000.0,0.00041917,3]
[313303581,1707127851767,-552.18999634,0.00041917,7]
[313303582,1707127851776,-533.59407886,0.00041917,7]
[313303583,1707127851786,-500.0,0.00041917,7]
[313303584,1707127851795,-524.63607903,0.00041917,7]
[313303585,1707127851804,-530.4087034,0.00041917,7]
[313303586,1707127851813,-500.0,0.00041917,7]
[313303587,1707127851822,-500.0,0.00041917,7]
[313303588,1707127851831,-500.0,0.00041917,7]
[313303589,1707127851841,-481.4712911,0.00041917,7]
[313303590,1707127851851,-500.0,0.00041917,7]
[313303591,1707127851860,-602.50450796,0.00041917,7]
[313303592,1707127851870,-531.50970454,0.00041917,7]
[313303593,1707127851881,-160.98037728,0.00041917,7]
[313303594,1707127851891,-500.0,0.00041917,20]
[313303595,1707127851901,-500.0,0.00041917,7]
[313303596,1707127851911,-500.0,0.00041917,7]
[313303597,1707127851921,-500.0,0.00041917,7]
[313303598,1707127851932,-500.0,0.00041917,7]
[313303599,1707127851942,-500.0,0.00041917,7]
[313303600,1707127851952,-532.41717117,0.00041917,7]
[313303601,1707127851962,-500.0,0.00041917,7]
[313303602,1707127851972,-564.22117055,0.00041917,7]
[313303603,1707127851981,-315.74304892,0.00041917,7]
[313303604,1707127851992,-500.0,0.00041917,7]
[313303605,1707127852003,-516.43893716,0.00041917,7]
[313303606,1707127852012,-558.1703682,0.00041917,7]
[313303607,1707127852024,-536.12489947,0.00041917,7]
[313303608,1707127852034,-500.0,0.00041917,7]
[313303609,1707127852044,-150.83822629,0.00041917,7]
[313303610,1707127852054,-192.27470063,0.00041917,7]
[313303611,1707127852064,-150.0,0.00041917,7]
[313303612,1707127852074,-232.20741532,0.00041917,7]
[313303613,1707127852084,-596.29189342,0.00041917,7]
[313303614,1707127852094,-500.0,0.00041917,7]
[313303615,1707127852104,-236.98885219,0.00041917,7]
[313303616,1707127852114,-500.0,0.00041917,7]
[313303617,1707127852124,-500.0,0.00041917,7]
[313303618,1707127852134,-171.73981121,0.00041917,7]
[313303619,1707127852143,-541.91404864,0.00041917,7]
[313303620,1707127852153,-500.0,0.00041917,7]
[313303621,1707127852162,-500.0,0.00041917,7]
[313303622,1707127852173,-546.84122147,0.00041917,7]
[313303623,1707127852183,-302.2667979,0.00041917,7]
[313303624,1707127852192,-500.0,0.00041917,7]
[313303625,1707127852202,-500.0,0.00041917,7]
[313303626,1707127852211,-500.0,0.00041917,7]
[313303627,1707127852221,-500.0,0.00041917,7]
[313303628,1707127852231,-390.90067976,0.00041917,7]
[313303629,1707127852240,-500.0,0.00041917,7]
[313303630,1707127852250,-500.0,0.00041917,7]
[313303631,1707127852260,-500.0,0.00041917,7]
[313303632,1707127852270,-500.0,0.00041917,7]
[313303633,1707127852279,-500.0,0.00041917,7]
[313303634,1707127852288,-500.0,0.00041917,7]
[313303635,1707127852298,-500.0,0.00041917,7]
[313303636,1707127852308,-232.02074882,0.00041917,7]
[313303637,1707127852317,-152.20334436,0.00041917,7]
[313303638,1707127852327,-500.0,0.00041917,7]
[313303639,1707127852336,-562.42289197,0.00041917,7]
[313303640,1707127852346,-500.0,0.00041917,5]
[313303641,1707127852355,-150.0,0.00041917,7]
[313303642,1707127852364,-537.46716951,0.00041917,7]
[313303643,1707127852373,-500.0,0.00041917,7]
[313303644,1707127852383,-522.08038993,0.00041917,7]
[313303645,1707127852392,-500.0,0.00041917,7]
[313303646,1707127852402,-585.66372595,0.00041917,7]
[313303647,1707127852410,-500.0,0.00041917,7]
[313303648,1707127852420,-500.0,0.00041917,7]
[313303649,1707127852429,-527.37071743,0.00041917,7]
[313303650,1707127852438,-576.93427813,0.00041917,7]
[313303651,1707127852447,-233.66598793,0.00041917,7]
[313303652,1707127852456,-500.0,0.00041917,7]
[313303653,1707127852466,-500.0,0.00041917,7]
[313303654,1707127852475,-546.21951953,0.00041917,7]
[313303655,1707127852485,-381.7130482,0.00041917,7]
[313303656,1707127852494,-500.0,0.00041917,7]
[313303657,1707127852504,-515.52812997,0.00041917,7]
[313303658,1707127852514,-152.00655476,0.00041917,7]
[313303659,1707127852524,-613.49998471,0.00041917,7]
[313303660,1707127852533,-500.0,0.00041917,7]
[313303661,1707127852542,-586.94753428,0.00041917,7]
[313303662,1707127852551,-500.0,0.00041917,7]
[313303663,1707127852561,-500.0,0.00041917,7]
[313303664,1707127852570,-535.65776001,0.00041917,7]
[313303665,1707127852579,-613.47344277,0.00041917,7]
[313303666,1707127852588,-500.0,0.00041917,7]
[313303667,1707127852598,-527.76711347,0.00041917,7]
[313303668,1707127852608,-562.80684012,0.00041917,7]
[313303669,1707127852618,-511.82937852,0.00041917,7]
[313303670,1707127852627,-500.0,0.00041917,7]
[313303671,1707127852637,-1000.0,0.00041917,30]
[313303672,1707127852647,-500.0,0.00041917,7]
[313303673,1707127852656,-500.0,0.00041917,7]
[313303674,1707127852665,-301.45704444,0.00041917,7]
[313303675,1707127852675,-500.0,0.00041917,7]
[313303676,1707127852685,-527.46453622,0.00041917,7]
[313303677,1707127852694,-500.0,0.00041917,7]
[313303678,1707127852703,-569.71,0.00041917,7]
[313303679,1707127852713,-500.0,0.00041917,7]
[313303680,1707127852722,-500.0,0.00041917,2]
[313303681,1707127852838,-535.44515938,0.00041917,7]
[313303682,1707127852848,-195.29818702,0.00041917,7]
[313303683,1707127852857,-590.17309688,0.00041917,7]
[313303684,1707127852867,-500.0,0.00041917,7]
[313303685,1707127852877,-500.0,0.00041917,7]
[313303686,1707127852887,-318.53908507,0.00041917,7]
[313303687,1707127852897,-609.56719656,0.00041917,7]
[313303688,1707127852907,-500.0,0.00041917,7]
[313303689,1707127852916,-649.85385439,0.00041917,7]
[313303690,1707127852926,-500.0,0.00041917,7]
[313303691,1707127852935,-500.0,0.00041917,7]
[313303692,1707127852945,-563.07392935,0.00041917,7]
[313303693,1707127852955,-500.0,0.00041917,7]
[313303694,1707127852965,-531.0965983,0.00041917,7]
[313303695,1707127852975,-567.30485629,0.00041917,7]
[313303696,1707127852985,-500.0,0.00041917,7]
[313303697,1707127852995,-500.0,0.00041917,7]
[313303698,1707127853006,-525.15215034,0.00041917,7]
[313303699,1707127853016,-500.0,0.00041917,7]
[313303700,1707127853026,-500.0,0.00041917,7]
[313303701,1707127853036,-500.0,0.00041917,7]
[313303702,1707127853045,-913.14,0.00041917,7]
[313303703,1707127853055,-529.02643168,0.00041917,7]
[313303704,1707127853064,-622.14,0.00041917,7]
[313303705,1707127853074,-500.0,0.00041917,7]
[313303706,1707127853083,-500.0,0.00041917,7]
[313303707,1707127853094,-500.0,0.00041917,7]
[313303708,1707127853104,-500.0,0.00041917,7]
[313303709,1707127853114,-500.0,0.00041917,7]
[313303710,1707127853124,-531.77264463,0.00041917,7]
[313303711,1707127853134,-500.0,0.00041917,7]
[313303712,1707127853144,-439.11749998,0.00041917,7]
[313303713,1707127853154,-272.22192118,0.00041917,7]
[313303714,1707127853164,-500.0,0.00041917,7]
[313303715,1707127853175,-500.0,0.00041917,7]
[313303716,1707127853187,-500.0,0.00041917,7]
[313303717,1707127853197,-637.84024352,0.00041917,7]
[313303718,1707127853206,-500.0,0.00041917,7]
[313303719,1707127853215,-563.13,0.00041917,7]